bitfinex/quotes_ETHUSD_20250622
["timestamp","ask_amount","ask_price","bid_price","bid_amount"]
[1750588839332,16.89116456,2261.7,2261.6,4.42164839]
[1750588840435,16.89116456,2261.7,2260.8,4.42302238]
[1750588840436,18.99191671,2261.7,2261.4,4.42193311]
[1750588840931,0.0552787,2261.6,2261.4,4.42193311]
[1750588841730,0.0552787,2261.6,2261.3,4.42207892]
[1750588841933,0.8627,2261.5,2261.2,4.42232517]
[1750588842132,7.38428223,2261.4,2261.2,4.42232517]
[1750588842336,7.38428223,2261.4,2261.3,4.42216295]
[1750588844745,0.05528223,2261.4,2261.3,4.42216295]
[1750588844953,7.38328223,2261.4,2261.3,4.42216295]
[1750588846943,0.05528223,2261.4,2261.3,4.42216295]
[1750588847143,7.38328223,2261.4,2261.3,4.42216295]
[1750588847641,2.7977,2261.5,2261.4,4.42203944]
[1750588847642,0.8627,2261.5,2261.4,4.42203944]
[1750588847827,9.262,2261.5,2261.4,4.42203944]
[1750588848034,9.51786456,2261.7,2261.6,4.42164839]
[1750588848212,20.79445102,2261.7,2261.6,4.42164839]
[1750588849040,11.53245102,2261.7,2261.6,4.42164839]
[1750588849350,20.79445102,2261.7,2261.6,4.42164839]
[1750588849642,17.90326456,2261.7,2261.6,4.42164839]
[1750588850511,15.96826456,2261.7,2261.6,4.42164839]
[1750588850711,8.64126456,2261.7,2261.6,4.42164839]
[1750588851114,15.96826456,2261.7,2261.6,4.42164839]
[1750588852050,8.64126456,2261.7,2261.6,4.42164839]
[1750588852353,15.96726456,2261.7,2261.6,4.42164839]
[1750588855066,8.64126456,2261.7,2261.6,4.42164839]
[1750588855250,15.96726456,2261.7,2261.6,4.42164839]
[1750588855449,8.64126456,2261.7,2261.6,4.42164839]
[1750588855970,8.410124,2261.7,2261.6,14.42164839]
[1750588856185,8.410124,2261.7,2261.6,14.97164839]
[1750588857872,8.410124,2261.7,2261.6,15.40405091]
[1750588859148,8.410124,2261.7,2261.6,14.85405091]
[1750588859348,8.410124,2261.7,2261.6,14.42164839]
[1750588859553,8.410124,2261.7,2261.6,4.42164839]
[1750588872160,11.1573564,2261.7,2261.6,4.42164839]
[1750588872366,9.299024,2261.7,2261.6,4.42164839]
[1750588876578,0.8889,2261.6,2261.5,4.42174157]
[1750588876780,0.94417666,2261.6,2261.5,4.42174157]
[1750588877302,0.8889,2261.6,2261.5,4.42174157]
[1750588877454,10.1409,2261.6,2261.5,4.42174157]
[1750588878377,0.8889,2261.6,2261.5,4.42174157]
[1750588878585,9.252,2261.6,2261.5,4.42174157]
[1750588879264,8.410124,2261.7,2261.6,4.42164839]
[1750588879560,17.662124,2261.7,2261.6,4.42164839]
[1750588879755,8.410124,2261.7,2261.6,4.42164839]
[1750588880177,8.410124,2261.7,2261.6,14.97164839]
[1750588880733,8.410124,2261.7,2261.6,16.90264839]
[1750588882000,8.410124,2261.7,2261.6,17.27035898]
[1750588885394,8.410124,2261.7,2261.6,24.22164839]
[1750588885793,8.410124,2261.7,2261.6,14.97164839]
[1750588886006,8.410124,2261.7,2261.6,24.21964839]
[1750588894634,8.33234069,2261.7,2261.6,24.21964839]
[1750588898042,6.91091274,2261.7,2261.6,24.21964839]
[1750588898207,6.88581274,2261.7,2261.6,24.21964839]
[1750588906827,2.09386036,2261.7,2261.6,15.48241875]
[1750588907035,2.09386036,2261.7,2261.6,14.42164839]
[1750588907344,2.09386036,2261.7,2261.6,21.73564839]
[1750588907534,2.09386036,2261.7,2261.6,22.28564839]
[1750588908662,1.37509874,2261.7,2261.6,22.28564839]
[1750588918805,2.28659874,2261.7,2261.6,14.97164839]
[1750588918966,1.37509874,2261.7,2261.6,22.28364839]
[1750588921716,0.0552587,2263.2,2261.6,22.28364839]
[1750588921717,0.8895,2262.8,2262.7,4.41949882]
[1750588922006,0.8895,2262.8,2262.7,22.28149882]
[1750588922202,0.8895,2263.1,2263.0,14.96891294]
[1750588922393,0.8895,2263.1,2263.0,22.28091294]
[1750588922590,1.18959578,2264.0,2263.9,4.41715623]
[1750588922906,0.005,2264.0,2263.9,4.41715623]
[1750588923105,0.005,2264.0,2263.9,3.42895623]
[1750588923106,0.94971371,2264.0,2263.9,3.42895623]
[1750588923409,0.8945,2264.0,2263.9,4.41715623]
[1750588926974,0.8945,2264.0,2263.9,3.42895623]
[1750588927327,0.94971535,2264.0,2263.0,0.44338679]
[1750588927487,0.9157,2263.7,2263.0,4.41878793]
[1750588927680,0.9157,2263.5,2262.7,4.41934204]
[1750588927881,2.89593688,2263.4,2263.3,4.41832722]
[1750588929302,2.89593688,2263.4,2263.1,4.41866422]
[1750588929303,0.9157,2263.3,2263.2,4.41844928]
[1750588931046,0.9157,2263.3,2262.2,2.475]
[1750588931341,0.9157,2263.1,2263.0,4.41891294]
[1750588931706,0.9157,2263.1,2262.4,4.42001406]
[1750588931908,0.9157,2262.9,2262.3,4.42022029]
[1750588932128,2.8407,2262.9,2262.8,4.41930351]
[1750588932445,0.9157,2262.8,2262.4,4.42008486]
[1750588932946,0.9157,2262.8,2261.8,4.42122997]
[1750588933112,0.9157,2262.8,2262.1,4.42065099]
[1750588933315,0.9157,2262.8,2262.7,4.41949882]
[1750588933533,0.9157,2262.8,2262.5,4.41976944]
[1750588933824,1.228177,2262.7,2262.6,4.41969415]
[1750588934619,3.153177,2262.7,2262.6,4.41969415]
[1750588937300,2.8407,2262.7,2262.6,4.41969415]
[1750588938615,0.9157,2262.7,2262.6,4.41969415]
[1750588938949,2.8407,2262.7,2262.6,4.41969415]
[1750588939439,2.8407,2262.7,2261.8,4.85895322]
[1750588939440,0.921,2262.5,2261.1,0.39604393]
[1750588939654,0.921,2262.1,2262.0,4.42086648]
[1750588939812,0.921,2262.0,2261.0,11.925]
[1750588940034,0.05527593,2261.9,2261.8,4.4212574]
[1750588940399,0.05527593,2261.9,2261.6,4.42162927]
[1750588940706,0.921,2261.8,2261.7,4.42145288]
[1750588940907,0.97627128,2261.8,2261.7,4.42145288]
[1750588941145,0.921,2261.8,2261.7,4.42145288]
[1750588941640,2.847,2261.8,2261.7,4.42145288]
[1750588941836,2.90226944,2261.8,2261.7,4.42145288]
[1750588942237,3.92359638,2261.8,2261.7,4.42145288]
[1750588942810,3.92359638,2261.8,2261.5,4.42179707]
[1750588943140,0.921,2261.7,2261.6,4.42152857]
[1750588943338,0.921,2261.7,2261.5,4.42174003]
[1750588943638,0.9762758,2261.6,2261.5,4.42174003]
[1750588943849,0.921,2261.5,2260.6,4.42360435]
[1750588944009,0.0552838,2261.4,2260.7,4.42340867]
[1750588944208,0.0552838,2261.4,2261.3,4.42223499]
[1750588944410,1.9812838,2261.4,2261.3,4.42223499]
[1750588944743,2.9022838,2261.4,2261.3,4.42223499]
[1750588944924,3.19251218,2261.4,2261.3,4.42223499]
[1750588945307,3.13722838,2261.4,2261.3,4.42223499]
[1750588946804,0.9543,2261.3,2261.1,4.42261303]
[1750588947003,0.9543,2261.0,2260.2,0.45331408]
[1750588947243,10.05528606,2261.2,2260.7,4.42325015]
[1750588947244,0.9543,2260.8,2260.7,4.42325015]
[1750588947945,2.8793,2260.8,2260.7,4.42325015]
[1750588948117,2.93459537,2260.8,2260.7,4.42325015]
[1750588952155,2.93459537,2260.8,2260.6,4.42346449]
[1750588952446,2.93459537,2260.8,2260.7,4.42340867]
[1750588952651,1.0081,2260.7,2259.8,0.9161]
[1750588952826,3.11505077,2260.8,2260.2,4.42425012]
[1750588952827,1.06341117,2260.6,2260.2,4.42425012]
[1750588953026,1.06341117,2260.6,2260.3,4.42418944]
[1750588953220,1.06341117,2260.6,2260.4,4.42381734]
[1750588953435,1.06341117,2260.6,2260.4,4.42397751]
[1750588954439,1.06341117,2260.6,2260.5,4.42380004]
[1750588954643,0.9813,2260.5,2260.4,4.42389459]
[1750588956454,0.9813,2260.5,2260.0,4.42471073]
[1750588956754,0.9813,2260.3,2259.8,4.42511603]
[1750588957058,0.9813,2260.1,2260.0,4.42476431]
[1750588957239,1.27746174,2260.1,2259.8,4.42511603]
[1750588957443,1.27746174,2260.1,2260.0,4.42477876]
[1750588958520,10.2223,2260.1,2260.0,4.42477876]
[1750588958928,0.9813,2260.1,2260.0,4.42477876]
[1750588959235,10.2233,2260.1,2260.0,4.42477876]
[1750588960521,0.9813,2260.1,2260.0,4.42477876]
[1750588960855,10.2233,2260.1,2260.0,4.42477876]
[1750588964577,9.242,2260.1,2260.0,4.42477876]
[1750588966961,0.9821,2260.3,2260.2,4.42438722]
[1750588967161,10.2241,2260.3,2260.2,4.42438722]
[1750588967367,11.25204085,2260.3,2260.2,4.42438722]
[1750588967977,11.25204085,2260.3,2259.5,5.35727424]
[1750588968268,0.05531503,2260.2,2260.1,4.42439636]
[1750588968844,0.9821,2260.1,2260.0,4.42468605]
[1750588970192,0.9821,2260.1,2259.2,0.9752]
[1750588970332,0.9487,2259.9,2259.8,4.42515828]
[1750588971968,0.9487,2259.8,2259.0,4.42669702]
[1750588972171,0.9487,2259.6,2259.5,4.42557105]
[1750588972356,0.9487,2259.6,2258.8,0.9752]
[1750588972562,0.9487,2259.4,2259.3,4.4260454]
[1750588972762,8.2647,2259.4,2259.3,4.4260454]
[1750588973611,1.79620664,2259.8,2259.7,4.42536619]
[1750588973899,1.1037415,2260.0,2259.9,4.42497455]
[1750588973900,10.1907,2260.0,2259.9,4.42497455]
[1750588974068,13.27267,2260.0,2259.9,4.42497455]
[1750588976571,13.27267,2260.0,2259.8,4.42507545]
[1750588976891,0.05531835,2259.9,2259.8,4.42507545]
[1750588978999,0.9881,2259.8,2259.6,4.42546348]
[1750588979317,7.37132411,2259.7,2259.1,4.42654154]
[1750588979468,0.83594241,2259.6,2259.5,4.42563041]
[1750588980194,7.316,2259.7,2259.6,4.42556204]
[1750588980415,7.37132435,2259.7,2259.6,4.42556204]
[1750588982618,7.37132435,2259.7,2258.6,0.44342764]
[1750588982619,0.9089,2259.6,2258.6,0.44342764]
[1750588982901,0.9089,2259.4,2258.6,4.42752147]
[1750588983109,0.9089,2259.2,2258.7,4.4272308]
[1750588983406,0.05534506,2259.1,2259.0,4.42673749]
[1750588984007,9.29634506,2259.1,2259.0,4.42673749]
[1750588984207,9.241,2259.1,2259.0,4.42673749]
[1750588985171,10.0,2259.9,2259.6,4.42543753]
[1750588985370,10.0,2259.7,2259.1,4.4263737]
[1750588985600,0.05532953,2259.6,2259.0,4.42673749]
[1750588985771,0.05532953,2259.6,2259.5,4.42575791]
[1750588985973,0.05532953,2259.6,2259.4,4.42587858]
[1750588986714,0.9795,2259.5,2259.3,4.42606851]
[1750588986900,7.37133039,2259.4,2259.3,4.42606851]
[1750588987080,8.20641343,2259.4,2259.3,4.42606851]
[1750588987407,8.15108304,2259.4,2259.3,4.42606851]
[1750588988608,7.316,2259.4,2259.3,4.42606851]
[1750588988904,7.37133053,2259.4,2259.3,4.42606851]
[1750588989216,1.1590886,2259.7,2259.6,4.42556204]
[1750588989511,0.2312886,2259.7,2259.6,4.42556204]
[1750588989688,9.4722886,2259.7,2259.6,4.42556204]
[1750588990818,0.2312886,2259.7,2259.6,4.42556204]
[1750588991132,7.316,2259.7,2259.6,4.42556204]
[1750588991807,7.316,2259.7,2259.6,5.38036204]
[1750588996085,1.925,2259.9,2259.8,4.42517036]
[1750588996278,9.24,2259.9,2259.8,4.42517036]
[1750588997017,10.86024834,2260.2,2260.1,4.42458298]
[1750588997220,20.10024834,2260.2,2260.1,4.42458298]
[1750588997905,12.78524834,2260.2,2260.1,4.42458298]
[1750588998085,20.10024834,2260.2,2260.1,4.42458298]
[1750588998286,10.86024834,2260.2,2260.1,4.42458298]
[1750588998525,20.10024834,2260.2,2260.1,4.42458298]
[1750589000101,1.0037,2261.1,2261.0,4.42282176]
[1750589000289,1.925,2261.1,2261.0,4.42282176]
[1750589000483,9.47016578,2261.1,2261.0,4.42282176]
[1750589000708,10.51755236,2261.1,2261.0,4.42282176]
[1750589000985,10.28638658,2261.1,2261.0,4.42282176]
[1750589001186,1.0037,2261.3,2261.2,4.42243056]
[1750589001405,10.29798642,2261.3,2261.2,4.42243056]
[1750589001692,10.2427,2261.3,2261.2,4.42243056]
[1750589003218,2.9287,2261.3,2261.2,4.42243056]
[1750589003516,1.98028395,2261.3,2261.2,4.42243056]
[1750589003726,9.29428395,2261.3,2261.2,4.42243056]
[1750589003885,9.239,2261.3,2261.2,4.42243056]
[1750589004298,1.925,2261.3,2261.2,4.42243056]
[1750589004523,9.237,2261.3,2261.2,4.42243056]
[1750589004896,0.23112962,2261.7,2261.6,4.42164839]
[1750589005096,7.312,2261.7,2261.6,4.42164839]
[1750589005521,0.23110665,2262.0,2261.8,4.42122549]
[1750589005691,7.312,2262.0,2261.9,4.42106193]
[1750589005891,1.924,2262.1,2262.0,4.42086648]
[1750589006115,9.236,2262.1,2262.0,4.42086648]
[1750589007226,10.1596,2262.1,2262.0,4.42086648]
[1750589007427,9.236,2262.1,2262.0,4.42086648]
[1750589008017,10.0,2262.4,2262.1,4.42056074]
[1750589008216,9.2892622,2262.3,2262.1,4.42056074]
[1750589008416,9.234,2262.3,2262.1,4.42056074]
[1750589008622,0.0552622,2262.2,2262.1,4.42056074]
[1750589009135,19.234,2262.3,2262.2,4.42047564]
[1750589009446,0.23108519,2262.5,2262.4,4.42008486]
[1750589009832,7.36524974,2262.6,2262.5,4.4198895]
[1750589010230,7.36424974,2262.6,2262.5,4.4198895]
[1750589010860,0.05524913,2262.7,2262.6,4.41969415]
[1750589011072,7.309,2262.7,2262.6,4.41969415]
[1750589014319,0.05524791,2262.8,2262.7,4.41949882]
[1750589014569,12.15301854,2262.9,2262.8,4.41930351]
[1750589014719,19.46001854,2262.9,2262.8,4.41930351]
[1750589015850,2.15301854,2262.9,2262.8,4.41930351]
[1750589016054,7.53701854,2262.9,2262.8,4.41930351]
[1750589016250,7.59226173,2262.9,2262.8,4.41930351]
[1750589017339,9.5435879,2262.9,2262.4,0.9347]
[1750589017546,9.48834471,2262.9,2262.8,4.41930351]
[1750589018342,0.9703,2262.6,2261.4,0.994]
[1750589018542,5.39053482,2262.4,2261.8,4.42113274]
[1750589018743,10.05526937,2262.3,2261.9,4.42105287]
[1750589019050,7.39726777,2262.2,2261.9,4.42105287]
[1750589019259,0.05526741,2262.1,2261.9,4.42105287]
[1750589019422,1.921,2262.0,2261.9,4.42105287]
[1750589019948,1.921,2262.0,2261.4,0.994]
[1750589020126,7.39627168,2261.9,2261.8,4.42110127]
[1750589023560,0.05527168,2261.9,2261.8,4.42110127]
[1750589023854,0.0552669,2262.3,2262.2,4.42047564]
[1750589024059,9.3092669,2262.3,2262.0,4.42074409]
[1750589024255,9.254,2262.3,2262.0,4.42074409]
[1750589024448,10.27643,2262.3,2262.0,4.42074409]
[1750589025455,0.28634878,2262.2,2262.0,4.42074409]
[1750589025647,0.28634878,2262.2,2261.8,4.42111065]
[1750589025648,10.28634878,2262.2,2262.1,4.42067105]
[1750589025850,10.23108434,2262.2,2262.1,4.42067105]
[1750589026225,0.23108434,2262.2,2262.0,4.42076419]
[1750589026429,9.30426443,2262.1,2262.0,4.42076419]
[1750589026656,9.249,2262.1,2262.0,4.42076419]
[1750589029366,10.29925143,2262.1,2262.0,4.42076419]
[1750589029571,10.29925143,2262.1,2261.9,4.42096294]
[1750589029756,0.05526563,2262.0,2261.9,4.42096294]
[1750589030830,1.05106563,2262.0,2261.8,4.42116533]
[1750589031055,2.10418063,2262.0,2261.9,4.42106193]
[1750589031464,2.10418063,2262.0,2261.8,4.42115008]
[1750589031968,2.10418063,2262.0,2261.9,4.42106193]
[1750589032169,2.10418063,2262.0,2261.8,4.42116986]
[1750589033365,2.10418063,2262.0,2261.1,0.9305]
[1750589033570,6.55232006,2261.9,2261.4,4.42199234]
[1750589033869,7.3742787,2261.8,2261.5,4.42183637]
[1750589034247,0.9958,2261.7,2261.3,4.42212784]
[1750589034446,1.97628017,2261.6,2261.3,4.42212784]
[1750589034648,7.318,2261.5,2261.3,4.42212784]
[1750589034868,0.05528064,2261.4,2261.3,4.42212784]
[1750589036235,0.05528064,2261.4,2260.9,0.9305]
[1750589036440,0.05528064,2261.4,2259.1,6.36290819]
[1750589036441,0.9958,2261.3,2260.5,0.9305]
[1750589036683,7.36929323,2261.2,2261.0,4.42263099]
[1750589036887,1.921,2261.1,2261.0,4.42263099]
[1750589037172,1.97628918,2261.1,2261.0,4.42263099]
[1750589037588,0.9958,2261.0,2260.7,4.42330288]
[1750589037788,7.37129749,2260.9,2260.7,4.42330288]
[1750589037939,7.37129749,2260.9,2260.8,4.42321302]
[1750589038139,7.37129749,2260.9,2260.7,4.42330716]
[1750589038451,7.37129749,2260.9,2260.6,4.42350264]
[1750589038663,7.37129749,2260.9,2260.7,4.423397]
[1750589038972,7.37129749,2260.9,2260.8,4.42321302]
[1750589039486,8.50296813,2260.9,2260.7,4.42331575]
[1750589039690,7.316,2260.9,2260.8,4.42321302]
[1750589039887,7.37129622,2260.9,2260.8,4.42321302]
[1750589040986,7.37129622,2260.9,2260.7,4.42331972]
[1750589041339,7.37129622,2260.9,2260.6,4.42355692]
[1750589041543,0.88190799,2260.8,2260.6,4.42355692]
[1750589041885,0.88190799,2260.8,2260.7,4.42340867]
[1750589043292,7.316,2260.9,2260.8,4.42321302]
[1750589043659,7.54117179,2261.1,2261.0,4.42282176]
[1750589044004,1.0066,2261.0,2260.5,4.42374732]
[1750589044175,1.0066,2261.0,2260.6,4.4234916]
[1750589044354,1.29704183,2260.9,2260.6,4.42360435]
[1750589044560,7.325,2260.8,2260.6,4.42360435]
[1750589044762,1.925,2260.7,2260.6,4.42360435]
[1750589045701,1.98029869,2260.7,2260.6,4.42360435]
[1750589049866,0.23117179,2261.1,2261.0,4.42282176]
[1750589050066,0.28646108,2261.1,2261.0,4.42282176]
[1750589050334,2.21246108,2261.1,2261.0,4.42282176]
[1750589050907,1.98128929,2261.1,2261.0,4.42282176]
[1750589052742,0.05528929,2261.1,2261.0,13.29162176]
[1750589053033,0.23114852,2261.4,2261.0,13.29162176]
[1750589053034,10.2415,2262.2,2262.0,4.42069935]
[1750589053332,0.05526712,2262.1,2262.0,4.42069935]
[1750589055934,0.23108397,2262.2,2262.1,4.42067105]
[1750589056232,1.925,2262.6,2262.5,4.4198895]
[1750589057320,0.23100381,2262.9,2262.5,4.4198895]
[1750589057508,1.925,2263.0,2262.9,4.41910822]
[1750589057709,1.925,2263.2,2263.1,4.41871768]
[1750589058737,0.05523771,2263.4,2263.3,4.41832722]
[1750589058942,0.06023093,2264.0,2263.9,4.41715623]
[1750589060053,0.005,2264.0,2263.9,4.41715623]
[1750589061440,0.005,2264.0,2263.0,4.41891294]
[1750589061441,4.41762892,2263.7,2263.0,4.41891294]
[1750589061610,0.55,2263.8,2263.2,4.41840845]
[1750589061611,9.82900408,2263.6,2263.2,4.41840845]
[1750589061813,9.77376289,2263.6,2263.2,4.41840845]
[1750589062209,9.80576289,2263.6,2263.4,4.41801821]
[1750589062414,9.80576289,2263.6,2263.3,4.41827351]
[1750589062646,9.80576289,2263.6,2263.4,4.41808348]
[1750589062845,0.73925374,2263.5,2263.4,4.41808348]
[1750589063023,0.73925374,2263.5,2263.4,4.41813201]
[1750589063225,0.9297,2263.4,2262.6,5.40087438]
[1750589063452,0.05524321,2263.3,2263.0,4.41875412]
[1750589063764,0.05524321,2263.3,2263.2,4.41852244]
[1750589064535,0.0552348,2263.4,2263.3,4.41832722]
[1750589065748,0.05523026,2263.5,2263.4,4.41813201]
[1750589069064,0.005,2264.0,2263.9,4.41715623]
[1750589072718,0.005,2264.0,2263.9,5.31255623]
[1750589074231,0.005,2264.0,2263.5,1.967]
[1750589074232,0.005,2264.0,2263.5,0.8954]
[1750589074466,4.47722684,2264.0,2263.5,4.41784349]
[1750589074627,4.47722684,2264.0,2263.8,4.41735135]
[1750589074628,1.51212268,2263.9,2263.8,4.41735135]
[1750589075038,1.51212268,2263.9,2263.5,4.41791543]
[1750589075242,0.0552278,2263.8,2263.4,4.4179617]
[1750589075446,4.41760513,2263.7,2263.2,4.41850641]
[1750589075641,2.46951767,2263.6,2262.9,0.9277]
[1750589075966,0.8672,2263.5,2263.2,4.41835855]
[1750589076265,0.05523437,2263.4,2263.2,4.41835855]
[1750589076466,0.05523437,2263.4,2263.2,4.41842974]
[1750589076669,0.05523437,2263.4,2263.3,4.41832722]
[1750589079047,0.05523306,2263.5,2263.4,4.41813201]
[1750589080731,1.08617637,2263.5,2263.4,4.41813201]
[1750589081139,1.08617637,2263.5,2262.9,0.9277]
[1750589081363,1.08617637,2263.5,2262.7,4.4194846]
[1750589081364,0.9186,2263.4,2262.7,4.4194846]
[1750589081555,0.9186,2263.4,2263.3,4.41832722]
[1750589082447,1.967,2263.6,2263.4,4.41813201]
[1750589082650,1.967,2263.6,2263.4,4.41803728]
[1750589082847,3.05256,2263.6,2263.4,4.41803728]
[1750589083542,3.05256,2263.6,2263.5,4.41793682]
[1750589083843,1.967,2263.6,2263.5,4.41793682]
[1750589085557,2.02222923,2263.6,2263.5,4.41793682]
[1750589085770,0.005,2264.0,2263.9,4.41715623]
[1750589085948,0.005,2264.0,2263.9,15.32535623]
[1750589086152,0.005,2264.1,2264.0,14.41696113]
[1750589086343,0.005,2264.1,2264.0,14.85863582]
[1750589087752,0.005,2264.1,2264.0,15.76683582]
[1750589088677,0.005,2264.1,2264.0,25.19283582]
[1750589089172,0.005,2264.1,2264.0,15.76683582]
[1750589089354,0.005,2264.1,2264.0,25.19183582]
[1750589089962,0.005,2264.1,2264.0,25.74183582]
[1750589090369,0.2221393,2264.6,2264.5,15.91738586]
[1750589090552,0.9005,2266.1,2266.0,4.41306266]
[1750589091367,1.99055,2266.1,2265.6,4.41380965]
[1750589091582,1.99055,2266.1,2265.6,4.4137925]
[1750589091747,1.99055,2266.1,2265.7,4.41358671]
[1750589092148,11.99055,2266.1,2265.7,4.41358671]
[1750589092350,11.947355,2266.0,2265.7,4.41358671]
[1750589092549,12.02117597,2265.9,2265.7,4.41358671]
[1750589092750,11.966,2265.9,2265.7,4.41358671]
[1750589093044,0.05517597,2265.8,2265.7,4.41358671]
[1750589093583,0.05517597,2265.8,2265.6,4.41376817]
[1750589093747,1.45202907,2265.8,2265.6,4.41376817]
[1750589094447,1.45202907,2265.8,2265.5,4.41390547]
[1750589094675,1.45202907,2265.8,2265.6,4.41384174]
[1750589094861,1.45202907,2265.8,2265.5,4.41400973]
[1750589095158,1.45202907,2265.8,2265.6,4.41372835]
[1750589096064,0.05517597,2265.8,2265.7,4.41364699]
[1750589099854,0.84207597,2265.8,2265.6,4.41371982]
[1750589100162,0.84207597,2265.8,2265.0,4.41501103]
[1750589100363,0.84207597,2265.8,2265.6,4.41367721]
[1750589100587,1.12288357,2265.8,2265.6,4.41367721]
[1750589100772,0.33598357,2265.8,2265.7,4.41364699]
[1750589101390,0.33598357,2265.8,2265.6,4.4138387]
[1750589101556,0.33598357,2265.8,2265.5,4.41391332]
[1750589101756,0.33598357,2265.8,2265.6,4.41383294]
[1750589101953,0.05517597,2265.8,2265.6,4.41383294]
[1750589102160,0.05517597,2265.8,2265.7,4.41364699]
[1750589102354,0.05517295,2265.9,2265.8,4.4134522]
[1750589102962,0.05517295,2265.9,2265.4,0.8093]
[1750589103162,0.05517295,2265.9,2265.8,4.4134522]
[1750589103366,0.05517113,2266.0,2265.9,4.41325742]
[1750589103900,8.60937824,2266.0,2265.6,4.41374431]
[1750589104076,8.55420711,2266.0,2265.9,4.41325742]
[1750589104267,7.47,2266.0,2265.8,4.41330083]
[1750589104462,7.52517032,2266.0,2265.9,4.41325742]
[1750589104897,7.52517032,2266.0,2265.6,4.41378208]
[1750589105095,7.52517032,2266.0,2265.7,4.41351473]
[1750589105305,7.52517032,2266.0,2265.8,4.41341657]
[1750589105672,7.52517032,2266.0,2265.9,4.41325742]
[1750589107599,0.05517032,2266.0,2265.9,4.41325742]
[1750589107780,1.84804,2266.4,2266.2,4.41267319]
[1750589107974,1.61730282,2266.4,2266.3,4.41247848]
[1750589108303,10.83045794,2266.6,2266.5,4.41208912]
[1750589108466,0.7753,2266.6,2266.5,4.41208912]
[1750589108660,0.8304555,2266.6,2266.4,4.41219308]
[1750589108862,10.8304555,2266.6,2266.0,0.8157]
[1750589109124,0.7753,2265.8,2264.8,0.8157]
[1750589109307,4.41464437,2265.2,2264.6,4.41564478]
[1750589109593,10.38750005,2265.1,2264.3,5.23203021]
[1750589109780,9.61520243,2265.0,2264.8,4.41528125]
[1750589109962,9.56,2265.0,2264.8,4.415215]
[1750589110161,9.56,2265.0,2264.9,4.41520596]
[1750589110398,2.014,2265.0,2264.9,4.41520596]
[1750589111787,7.549,2265.5,2265.4,4.41405001]
[1750589111960,11.45457,2265.5,2264.8,5.221715]
[1750589112166,0.05518461,2265.4,2264.8,5.221715]
[1750589112591,0.05518461,2265.4,2265.2,4.41446832]
[1750589112999,0.05518461,2265.4,2265.3,4.41442634]
[1750589113394,7.62718461,2265.4,2265.3,4.41442634]
[1750589114490,7.62718461,2265.4,2265.2,4.41452699]
[1750589114793,8.59130307,2265.4,2264.8,5.22186031]
[1750589114994,8.53611846,2265.4,2265.2,4.41460604]
[1750589115193,8.53611846,2265.4,2265.1,4.41479653]
[1750589115503,8.53611846,2265.4,2265.3,4.41442634]
[1750589115664,8.53611846,2265.4,2265.2,4.41452694]
[1750589115867,8.53611846,2265.4,2265.1,4.41474157]
[1750589116078,0.0551869,2265.3,2265.1,4.41474157]
[1750589116906,0.7951,2265.2,2264.5,0.7669]
[1750589117066,0.05519555,2265.1,2265.0,4.41501103]
[1750589117272,0.05519555,2265.1,2264.9,4.41516795]
[1750589117465,2.014,2265.0,2264.9,4.41516795]
[1750589117928,9.578,2265.0,2264.9,4.41516795]
[1750589118109,9.578,2265.0,2264.8,4.41527995]
[1750589118415,0.05519407,2264.9,2264.8,4.41527995]
[1750589119486,0.05519407,2264.9,2264.6,4.41566323]
[1750589119705,0.05519407,2264.9,2263.9,4.41715623]
[1750589119706,0.8446,2264.8,2263.9,4.41715623]
[1750589119909,0.8446,2264.8,2263.8,9.37136308]
[1750589119910,0.05520561,2264.7,2264.5,4.41596651]
[1750589120601,7.572,2264.6,2264.5,4.41596651]
[1750589121570,7.572,2264.6,2264.5,4.41598586]
[1750589124332,7.61220059,2264.9,2264.8,4.41540091]
[1750589126233,8.45680059,2264.9,2264.5,4.41583443]
[1750589126448,8.45680059,2264.9,2263.8,15.2205639]
[1750589126449,9.44868006,2264.9,2263.8,15.2205639]
[1750589126605,9.44868006,2264.9,2264.5,4.415967]
[1750589127034,9.44868006,2264.9,2264.6,4.41577279]
[1750589127450,15.32227532,2265.3,2265.1,4.41481612]
[1750589127451,0.2308454,2265.3,2265.1,4.41481612]
[1750589127606,0.2308454,2265.3,2265.2,4.41462122]
[1750589127607,0.28603278,2265.3,2265.2,4.41462122]
[1750589127802,9.562,2265.4,2265.3,4.41442634]
[1750589128838,9.562,2265.4,2265.0,4.41486688]
[1750589129048,1.09584955,2265.3,2265.1,4.41477477]
[1750589129273,1.09584955,2265.3,2265.0,4.41492432]
[1750589129611,1.09584955,2265.3,2264.3,0.7624]
[1750589129612,0.55,2265.1,2264.3,0.7624]
[1750589129812,7.62019962,2265.0,2264.8,4.41522533]
[1750589130012,2.077,2264.9,2264.8,4.41522533]
[1750589131729,2.8524,2265.5,2265.4,4.41423148]
[1750589131914,0.05518171,2265.6,2265.5,4.41403663]
[1750589132116,18.177,2265.7,2265.6,4.4138418]
[1750589132319,3.08319957,2265.8,2265.6,4.4138418]
[1750589132320,9.648,2265.8,2265.7,4.41364699]
[1750589132618,9.651,2265.8,2265.7,4.41364699]
[1750589137162,2.077,2265.8,2265.7,4.41364699]
[1750589137458,2.076,2266.3,2266.2,4.41267319]
[1750589137626,9.635,2266.3,2266.2,4.41267319]
[1750589138164,0.773,2266.6,2266.5,4.41208912]
[1750589138459,1.8503,2266.6,2266.4,4.41219351]
[1750589138636,7.556,2266.5,2266.4,4.41219351]
[1750589138839,2.2981393,2266.9,2266.5,4.41208912]
[1750589139038,2.2981393,2266.9,2266.8,4.4115052]
[1750589139340,2.3532865,2266.9,2266.8,4.4115052]
[1750589141430,0.2772865,2266.9,2266.8,4.4115052]
[1750589141732,7.8252865,2266.9,2266.8,4.4115052]
[1750589142049,8.81541515,2266.9,2265.7,4.96345355]
[1750589142226,9.55176795,2266.9,2266.7,4.41155495]
[1750589142629,9.55176795,2266.9,2266.8,4.4115052]
[1750589143363,9.55176795,2266.9,2266.7,4.4115974]
[1750589143568,0.05514968,2266.8,2266.7,4.4115974]
[1750589144283,0.2221393,2266.9,2266.8,4.4115052]
[1750589144455,7.7731393,2266.9,2266.8,4.4115052]
[1750589144972,8.75805323,2266.9,2266.6,4.41177533]
[1750589145271,0.8113,2266.8,2266.7,4.41169982]
[1750589146037,7.7731393,2266.9,2266.8,4.4115052]
[1750589146235,0.27728761,2266.9,2266.8,4.4115052]
[1750589146579,0.2221393,2266.9,2266.8,4.4115052]
[1750589149374,10.66663317,2268.1,2267.0,0.8248]
[1750589149681,0.54439056,2268.0,2267.9,4.40925162]
[1750589149877,0.05512724,2268.0,2267.9,4.40925162]